{"text_format":"1","workbook":"xlsx","n_sheets":8,"sheets":["Angaben","Lightline 35 A opal","Lightline 35 P opal","Lightline 35 E opal","Blackline 35 A","Blackline 35 P","Blackline 35 E","Tabelle2"],"not_rendered":{"charts":0,"images":1,"macros":1,"external_links":0,"defined_names":0,"comments":0,"pivot_tables":0},"unopened":[],"bounds":{"document_bytes":16777216,"sheet_cells":100000,"rows_first":2000,"rows_last":500,"rows_between":2000,"halvings":0,"cell_chars":16384,"cell_head_chars":4096},"cells_cut":0,"cells_raw":0,"read":"whole","date_system":"1900"}

{"sheet":"Angaben","index":0,"n_rows":23,"n_cols":4,"rows_kept":23,"cut":false,"hidden":false,"merged":[]}
["Lightline 35 "]
[]
[]
[]
[]
[]
[]
["Bitte wählen Sie die Leuchte aus, zu der der Ausschreibungstext gewünscht ist"]
[]
["Leuchtentyp auswählen: ","Blackline 35 Einbau Abdeckung schwarz"]
[]
["Länge eingeben: ",2000,"mm"]
[]
[null,{"$f":"IF(B10=Tabelle2!A3,(Angaben!B12-35)/280,IF(Angaben!B10=Tabelle2!A6,(Angaben!B12-35)/280,(Angaben!B12-25)/280))","v":7.0178571428571432},{"$f":"ROUNDDOWN(B14,0)","v":7},{"$f":"ROUNDUP(B14,0)","v":8}]
[]
["Mögliche Längen:",{"$f":"IF(B10=Tabelle2!A3,Angaben!C14*280+35,IF(Angaben!B10=Tabelle2!A6,Angaben!C14*280+35,Angaben!C14*280+25))","v":1995},"mm  *",1]
[null,{"$f":"IF(B10=Tabelle2!A3,Angaben!D14*280+35,IF(Angaben!B10=Tabelle2!A6,Angaben!D14*280+35,Angaben!D14*280+25))","v":2275},"mm  *",1]
[]
[null,"*BITTE LÄNGE AUSWÄHLEN"]
[]
[null,"Bitte gewünschten Text öffnen"]
[]
["Bei Fragen oder fehlenden Ausschreibungstexten schreiben Sie uns bitte an:",null,null,"info@kotzolt.de"]

{"sheet":"Lightline 35 A opal","index":1,"n_rows":31,"n_cols":7,"rows_kept":31,"cut":false,"hidden":true,"merged":[]}
[]
[]
[]
[]
[]
["Ausschreibungstext"]
["Lightline 35 Anbau opal"]
[]
["Anbauleuchte mit LED ",null,null,{"$f":"(F9-25)/280*1100","v":-98.214285714285722},"lm",{"$f":"IF(A7=Angaben!B10,IF(Angaben!D16=1,Angaben!B16,IF(Angaben!$D$16=2,Angaben!$B$17)))","v":false},"mm"]
["Leuchtenkörper aus Aluminiumprofil eloxiert, "]
["auch in Weiß, Schwarz oder Titansilber möglich"]
["Lichtaustritt mit Profil-Abdeckung opal Diffus PMMA"]
["Einzelleuchte. Treiber in Leuchtenkörper integriert. "]
["Nach Ökodesign Richtline sind alle Komponenten einzeln austauschbar"]
["LED Module auf separater Trägerarmatur."]
[]
["Abmessung",null,{"$f":"F9","v":false},"x 35 x 35","mm","(L x B x H)"]
["Leuchtmittel",null,"LED-Lumenstrom",null,{"$f":"D9","v":-98.214285714285722},"lm"]
[null,null,"Leuchten-Lumenstrom",null,{"$f":"ROUND(E18*0.74,0)","v":-73},"lm"]
[null,null,"Anschlussleistung ca. ",null,{"$f":"E18/1100*6.8","v":-0.6071428571428571},"Watt"]
[null,null,"Effizienz ca. 120lm/W"]
[null,null,"Farbwiedergabeindex > 80 (optional > 90)"]
[null,null,"Lebensdauer L80/B10/60000h"]
[null,null,"Flickerfrei Pst < 0,5 - SVM < 0,5 und Zhaga konform"]
["Farbtemperatur:",null,4000,"K","(optional 3000 K)"]
["Betriebsgerät",null,"DALI dimmbar (optional schaltbar)"]
["Schutzart: ",null,"IP 20"]
["Montageart: ",null,"Deckenanbau"]
[]
["Fabrikat ",null,"Kotzolt"]
["Typ",null,"Lightline 35 A LED",null,{"$f":"D9","v":-98.214285714285722},"lm"]

{"sheet":"Lightline 35 P opal","index":2,"n_rows":34,"n_cols":7,"rows_kept":34,"cut":false,"hidden":true,"merged":[]}
[]
[]
[]
[]
[]
["Ausschreibungstext"]
["Lightline 35 Pendel opal"]
[]
["Pendelleuchte mit LED ",null,null,{"$f":"(F9-25)/280*1100","v":-98.214285714285722},"lm",{"$f":"IF(A7=Angaben!B10,IF(Angaben!D16=1,Angaben!B16,IF(Angaben!D16=2,Angaben!B17)))","v":false},"mm"]
["Leuchtenkörper aus Aluminiumprofil eloxiert, "]
["auch in Weiß, Schwarz oder Titansilber möglich"]
["Lichtaustritt mit Profil-Abdeckung opal Diffus PMMA"]
["Einzelleuchte. Treiber in Leuchtenkörper integriert. "]
["inkl. Stahlseile 1,0 Meter"]
["transparente Zuleitung 5x0,75mm² (schaltbar: 3x0,75mm²)"]
["und quadratischer Baldachin"]
["Nach Ökodesign Richtline sind alle Komponenten einzeln austauschbar"]
["LED Module auf separater Trägerarmatur."]
[]
["Abmessung",null,{"$f":"F9","v":false},"x 35 x 35","mm","(L x B x H)"]
["Leuchtmittel",null,"LED-Lumenstrom",null,{"$f":"D9","v":-98.214285714285722},"lm"]
[null,null,"Leuchten-Lumenstrom",null,{"$f":"ROUND(E21*0.74,0)","v":-73},"lm"]
[null,null,"Anschlussleistung ca. ",null,{"$f":"E21/1100*6.8","v":-0.6071428571428571},"Watt"]
[null,null,"Effizienz ca. 120lm/W"]
[null,null,"Farbwiedergabeindex > 80 (optional > 90)"]
[null,null,"Lebensdauer L80/B10/60000h"]
[null,null,"Flickerfrei Pst < 0,5 - SVM < 0,5 und Zhaga konform"]
["Farbtemperatur:",null,4000,"K","(optional 3000 K)"]
["Betriebsgerät",null,"DALI dimmbar (optional schaltbar)"]
["Schutzart: ",null,"IP 20"]
["Montageart: ",null,"Pendelmontage"]
[]
["Fabrikat ",null,"Kotzolt"]
["Typ",null,"Lightline 35 P LED",null,{"$f":"D9","v":-98.214285714285722},"lm"]

{"sheet":"Lightline 35 E opal","index":3,"n_rows":31,"n_cols":7,"rows_kept":31,"cut":false,"hidden":true,"merged":[]}
[]
[]
[]
[]
[]
["Ausschreibungstext"]
["Lightline 35 Einbau opal"]
[]
["Einbauleuchte mit LED ",null,null,{"$f":"(F9-35)/280*1100","v":-137.5},"lm",{"$f":"IF(A7=Angaben!B10,IF(Angaben!D16=1,Angaben!B16,IF(Angaben!D16=2,Angaben!B17)))","v":false},"mm"]
["Leuchtenkörper aus Aluminiumprofil eloxiert, "]
["auch in Weiß, Schwarz oder Titansilber möglich"]
["Lichtaustritt mit Profil-Abdeckung opal Diffus PMMA"]
["Einzelleuchte. Treiber in Leuchtenkörper integriert. "]
["Nach Ökodesign Richtline sind alle Komponenten einzeln austauschbar"]
["LED Module auf separater Trägerarmatur."]
[]
["Abmessung",null,{"$f":"F9","v":false},"x 35 x 35","mm","(L x B x H)"]
["Leuchtmittel",null,"LED-Lumenstrom",null,{"$f":"D9","v":-137.5},"lm"]
[null,null,"Leuchten-Lumenstrom",null,{"$f":"ROUND(E18*0.74,0)","v":-102},"lm"]
[null,null,"Anschlussleistung ca. ",null,{"$f":"E18/1100*6.8","v":-0.85},"Watt"]
[null,null,"Effizienz ca. 120lm/W"]
[null,null,"Farbwiedergabeindex > 80 (optional > 90)"]
[null,null,"Lebensdauer L80/B10/60000h"]
[null,null,"Flickerfrei Pst < 0,5 - SVM < 0,5 und Zhaga konform"]
["Farbtemperatur:",null,4000,"K","(optional 3000 K)"]
["Betriebsgerät",null,"DALI dimmbar (optional schaltbar)"]
["Schutzart: ",null,"IP 20"]
["Montageart: ",null,"Einbaumontage"]
[]
["Fabrikat ",null,"Kotzolt"]
["Typ",null,"Lightline 35 E LED",null,{"$f":"D9","v":-137.5},"lm"]

{"sheet":"Blackline 35 A","index":4,"n_rows":30,"n_cols":7,"rows_kept":30,"cut":false,"hidden":true,"merged":[]}
[]
[]
[]
[]
[]
["Ausschreibungstext"]
["Blackline 35 Anbau Abdeckung schwarz"]
[]
["Anbauleuchte mit LED ",null,null,{"$f":"(F9-25)/280*1100","v":-98.214285714285722},"lm",{"$f":"IF(A7=Angaben!B10,IF(Angaben!D16=1,Angaben!B16,IF(Angaben!D16=2,Angaben!B17)))","v":false},"mm"]
["Leuchtenkörper aus Aluminiumprofil schwarz gepulvert, "]
["Lichtaustritt mit Profil-Abdeckung schwarz PMMA"]
["Einzelleuchte. Treiber in Leuchtenkörper integriert. "]
["Nach Ökodesign Richtline sind alle Komponenten einzeln austauschbar"]
["LED Module auf separater Trägerarmatur."]
[]
["Abmessung",null,{"$f":"F9","v":false},"x 35 x 35","mm","(L x B x H)"]
["Leuchtmittel",null,"LED-Lumenstrom",null,{"$f":"D9","v":-98.214285714285722},"lm"]
[null,null,"Leuchten-Lumenstrom",null,{"$f":"ROUND(E17*0.26,0)","v":-26},"lm"]
[null,null,"Anschlussleistung ca. ",null,{"$f":"E17/1100*6.8","v":-0.6071428571428571},"Watt"]
[null,null,"Effizienz ca. 42lm/W"]
[null,null,"Farbwiedergabeindex > 80 (optional > 90)"]
[null,null,"Lebensdauer L80/B10/60000h"]
[null,null,"Flickerfrei Pst < 0,5 - SVM < 0,5 und Zhaga konform"]
["Farbtemperatur:",null,4000,"K","(optional 3000 K)"]
["Betriebsgerät",null,"DALI dimmbar (optional schaltbar)"]
["Schutzart: ",null,"IP 20"]
["Montageart: ",null,"Deckenanbau"]
[]
["Fabrikat ",null,"Kotzolt"]
["Typ",null,"Blackline 35 A LED",null,{"$f":"D9","v":-98.214285714285722},"lm"]

{"sheet":"Blackline 35 P","index":5,"n_rows":33,"n_cols":7,"rows_kept":33,"cut":false,"hidden":true,"merged":[]}
[]
[]
[]
[]
[]
["Ausschreibungstext"]
["Blackline 35 Pendel Abdeckung schwarz"]
[]
["Pendelleuchte mit LED ",null,null,{"$f":"(F9-25)/280*1100","v":-98.214285714285722},"lm",{"$f":"IF(A7=Angaben!B10,IF(Angaben!D16=1,Angaben!B16,IF(Angaben!D16=2,Angaben!B17)))","v":false},"mm"]
["Leuchtenkörper aus Aluminiumprofil schwarz gepulvert, "]
["Lichtaustritt mit Profil-Abdeckung schwarz PMMA"]
["Einzelleuchte. Treiber in Leuchtenkörper integriert. "]
["inkl. Stahlseile 1,0 Meter"]
["transparente Zuleitung 5x0,75mm² (schaltbar: 3x0,75mm²)"]
["und quadratischer Baldachin"]
["Nach Ökodesign Richtline sind alle Komponenten einzeln austauschbar"]
["LED Module auf separater Trägerarmatur."]
[]
["Abmessung",null,{"$f":"F9","v":false},"x 35 x 35","mm","(L x B x H)"]
["Leuchtmittel",null,"LED-Lumenstrom",null,{"$f":"D9","v":-98.214285714285722},"lm"]
[null,null,"Leuchten-Lumenstrom",null,{"$f":"ROUND(E20*0.26,0)","v":-26},"lm"]
[null,null,"Anschlussleistung ca. ",null,{"$f":"E20/1100*6.8","v":-0.6071428571428571},"Watt"]
[null,null,"Effizienz ca. 42lm/W"]
[null,null,"Farbwiedergabeindex > 80 (optional > 90)"]
[null,null,"Lebensdauer L80/B10/60000h"]
[null,null,"Flickerfrei Pst < 0,5 - SVM < 0,5 und Zhaga konform"]
["Farbtemperatur:",null,4000,"K","(optional 3000 K)"]
["Betriebsgerät",null,"DALI dimmbar (optional schaltbar)"]
["Schutzart: ",null,"IP 20"]
["Montageart: ",null,"Pendelmontage"]
[]
["Fabrikat ",null,"Kotzolt"]
["Typ",null,"Blackline 35 P LED",null,{"$f":"D9","v":-98.214285714285722},"lm"]

{"sheet":"Blackline 35 E","index":6,"n_rows":30,"n_cols":7,"rows_kept":30,"cut":false,"hidden":true,"merged":[]}
[]
[]
[]
[]
[]
["Ausschreibungstext"]
["Blackline 35 Einbau Abdeckung schwarz"]
[]
["Einbauleuchte mit LED ",null,null,{"$f":"(F9-35)/280*1100","v":7700},"lm",{"$f":"IF(A7=Angaben!B10,IF(Angaben!D16=1,Angaben!B16,IF(Angaben!D16=2,Angaben!B17)))","v":1995},"mm"]
["Leuchtenkörper aus Aluminiumprofil schwarz gepulvert, "]
["Lichtaustritt mit Profil-Abdeckung schwarz PMMA"]
["Einzelleuchte. Treiber in Leuchtenkörper integriert. "]
["Nach Ökodesign Richtline sind alle Komponenten einzeln austauschbar"]
["LED Module auf separater Trägerarmatur."]
[]
["Abmessung",null,{"$f":"F9","v":1995},"x 35 x 35","mm","(L x B x H)"]
["Leuchtmittel",null,"LED-Lumenstrom",null,{"$f":"D9","v":7700},"lm"]
[null,null,"Leuchten-Lumenstrom",null,{"$f":"ROUND(E17*0.26,0)","v":2002},"lm"]
[null,null,"Anschlussleistung ca. ",null,{"$f":"E17/1100*6.8","v":47.6},"Watt"]
[null,null,"Effizienz ca. 42lm/W"]
[null,null,"Farbwiedergabeindex > 80 (optional > 90)"]
[null,null,"Lebensdauer L80/B10/60000h"]
[null,null,"Flickerfrei Pst < 0,5 - SVM < 0,5 und Zhaga konform"]
["Farbtemperatur:",null,4000,"K","(optional 3000 K)"]
["Betriebsgerät",null,"DALI dimmbar (optional schaltbar)"]
["Schutzart: ",null,"IP 20"]
["Montageart: ",null,"Einbaumontage"]
[]
["Fabrikat ",null,"Kotzolt"]
["Typ",null,"Blackline 35 E LED",null,{"$f":"D9","v":7700},"lm"]

{"sheet":"Tabelle2","index":7,"n_rows":6,"n_cols":1,"rows_kept":6,"cut":false,"hidden":true,"merged":[]}
["Lightline 35 Anbau opal"]
["Lightline 35 Pendel opal"]
["Lightline 35 Einbau opal"]
["Blackline 35 Anbau Abdeckung schwarz"]
["Blackline 35 Pendel Abdeckung schwarz"]
["Blackline 35 Einbau Abdeckung schwarz"]